Cogmind - Beta 13 @@@ ROGUE MODE // 2024.04.15 @ 05:32:40 Player: A Moose Result: Destroyed by as-14052 with Assembled Maul Performance ------------- Evolutions (0) 0 Regions Visited (4) 800 Robots Destroyed (6) 30 Value Destroyed (84) 84 Prototype IDs (0) 0 Alien Tech Used (0) 0 Bonus (22) 22 TOTAL SCORE: 936 Bonus ------- Follower Combat Kills 141 Friendly Fire -119 Cogmind --------- Core Integrity 0/250 Matter 277/300 Energy 73/100 System Corruption 0% Temperature Warm (151) Movement Core (350) Ox6 Location -9/Mines Parts ------- > --- POWER (1) -------- (None) > --- PROPULSION (2) --- (None) > --- UTILITY (2) ------ Large Storage Unit > --- WEAPON (2) ------- (None) > --- INVENTORY (15) --- Light Ion Engine Light Ion Engine Improved Heat Sink Medium Storage Unit Makeshift Cloaking Device Assault Rifle Light Assault Rifle Light Assault Rifle Light Cannon Mining Laser Makeshift Axe Peak State ------------ > --- POWER ------------ Ion Engine > --- PROPULSION ------- Compact Wheel Compact Wheel > --- UTILITY ---------- Medium Storage Unit Makeshift Cloaking Device > --- WEAPON ----------- Light Cannon Makeshift Axe > --- INVENTORY -------- Light Ion Engine Light Ion Engine Small Storage Unit Makeshift Laser Assault Rifle Light Assault Rifle Light Assault Rifle Light Cannon Light Cannon Mining Laser [Rating: 15] Favorites ----------- Power Ion Engine Engine Ion Engine Propulsion Compact Wheel Wheel Compact Wheel Utility Medium Storage Unit Device Makeshift Cloaking Device Storage Medium Storage Unit Weapon Light Cannon Energy Gun Makeshift Laser Ballistic Gun Assault Rifle Ballistic Cannon Light Cannon Special Weapon Mining Laser Slashing Weapon Makeshift Axe Build | -11 -10 -10 -10 -9 ------- Run | Yrd Mat Min Exi Min Slots Evolved . | . . . . . Power . | . . . . . Propulsion . | . . . . . Utility . | . . . . . Weapon . | . . . . . Parts Attached 16 | 5 2 3 4 2 Power 2 | . . 2 . . Engine 2 | . . 2 . . Core . | . . . . . Reactor . | . . . . . Propulsion 2 | 2 . . . . Treads . | . . . . . Leg . | . . . . . Wheel 2 | 2 . . . . Hover . | . . . . . Flight . | . . . . . Utility 4 | 1 . 1 2 . Device 1 | . . . 1 . Storage 3 | 1 . 1 1 . Processor . | . . . . . Hackware . | . . . . . Protection . | . . . . . Artifact . | . . . . . Weapon 8 | 2 2 . 2 2 Energy Gun 1 | . . . . 1 Energy Cannon . | . . . . . Ballistic Gun 2 | 2 . . . . Ballistic Cannon 3 | . 2 . . 1 Launcher . | . . . . . Special Weapon 1 | . . . 1 . Impact Weapon . | . . . . . Slashing Weapon 1 | . . . 1 . Piercing Weapon . | . . . . . Special Melee Weapon . | . . . . . Unidentified Prototypes . | . . . . . Parts Lost 5 | . . . . 5 Power . | . . . . . Propulsion 2 | . . . . 2 Utility . | . . . . . Weapon 3 | . . . . 3 Highest Loss Streak 5 | . . . . 5 To Critical Strikes . | . . . . . Average Slot Usage (%) 90 | . 71 84 90 96 Engine 13 | . . 13 14 13 Wheel 27 | . 28 28 28 27 Device 5 | . . . 5 12 Storage 14 | . 14 14 14 14 Ballistic Cannon 18 | . 9 28 17 14 Special Weapon 2 | . . . 4 . Slashing Weapon 6 | . . . 6 13 Naked Turns . | . . . . . Heaviest Build 32 | 8 11 21 32 32 Greatest Support 32 | 32 32 32 32 32 Greatest Overweight (x) . | . . . . . Average Overweight (x) . | . . . . . Largest Inventory Capacity 15 | 8 8 10 15 15 Average Capacity 11 | 7 8 9 10 15 Most Carried 12 | 4 7 9 10 12 Average Carried 8 | 2 4 7 9 10 Final Capacity 15 | 8 8 10 15 15 Final Carried 11 | 3 7 9 10 11 Class Distribution -------------------- 100% | Mutant Dominant Class ---------------- Mutant | -10/Materials Mutant | -10/Mines Mutant | -10/Exiles Mutant | -9/Mines Resources | -11 -10 -10 -10 -9 ----------- Run | Yrd Mat Min Exi Min Matter Collected 412 | 214 . 134 . 64 Remotely . | . . . . . Salvage Created 125 | . . 28 . 97 Parts 9 | . . 4 . 5 Haulers Intercepted . | . . . . . Recyclers Shooed . | . . . . . Parts Field Recycled . | . . . . . Retrieved Matter . | . . . . . Parts Self-Destructed . | . . . . . Prevented . | . . . . . Kills | -11 -10 -10 -10 -9 ------- Run | Yrd Mat Min Exi Min Combat Hostiles Destroyed 6 | . . 3 . 3 Melee 1 | . . . . 1 Cannons 5 | . . 3 . 2 Classes Destroyed 3 | . . 1 . 2 Swarmer 4 | . . 3 . 1 Grunt 2 | . . . . 2 Assembled 1 | . . . . 1 Best Kill Streak 3 | . . 3 . 1 Combat Bots Only 3 | . . 3 . 1 Max Kills in Single Turn 1 | . . 1 . 1 Gunslinging . | . . . . . Exploded . | . . . . . Melee 1 | . . . . 1 Uniques/NPCs Destroyed . | . . . . . Combat | -11 -10 -10 -10 -9 -------- Run | Yrd Mat Min Exi Min Hostile Shots Fired 53 | . 2 7 . 44 Missed 12 | . 1 2 . 9 Damage Taken 787 | . 10 66 . 711 Core 254 | . . 17 . 237 Absorbed by Shields . | . . . . . Core Remaining (%) 100 | 100 . . . . Volleys Fired 28 | . . 6 10 12 Largest 2 | . . 2 1 2 Hottest 100 | . . 70 100 85 Shots Fired 38 | . . 12 10 16 Gun 3 | . . . . 3 Cannon 25 | . . 12 . 13 Launcher . | . . . . . Special 10 | . . . 10 . Kinetic 25 | . . 12 . 13 Thermal 13 | . . . 10 3 Explosive . | . . . . . Electromagnetic . | . . . . . Robot Hit Streak 5 | . . 3 3 5 Robot Miss Streak 7 | . . 1 1 7 Penetration Max . | . . . . . Secondary Targets . | . . . . . Shots Hit Robots 18 | . . 7 3 8 Core Hits 11 | . . 3 2 6 Critical Kills . | . . . . . Critical Parts Destroyed . | . . . . . Critical Strikes 3 | . . 1 . 2 Blast 3 | . . 1 . 2 Melee Attacks 2 | . . . . 2 Impact . | . . . . . Slashing 2 | . . . . 2 Piercing . | . . . . . Sneak Attacks . | . . . . . Combat Hostiles . | . . . . . Follow-up Attacks . | . . . . . Damage Inflicted 471 | . . 133 114 224 Guns 33 | . . . . 33 Cannons 285 | . . 133 . 152 Explosions . | . . . . . Melee 39 | . . . . 39 Ramming . | . . . . . Kinetic 285 | . . 133 . 152 Thermal 147 | . . . 114 33 Explosive . | . . . . . Electromagnetic . | . . . . . Impact . | . . . . . Slashing 39 | . . . . 39 Piercing . | . . . . . Highest Corruption . | . . . . . Average Corruption . | . . . . . Corruption Purged . | . . . . . Corruption Blocked . | . . . . . Overload Shots . | . . . . . Overflow Damage . | . . . . . Projectiles . | . . . . . Explosions . | . . . . . Melee . | . . . . . Knockbacks 3 | . . 2 . 1 Impact . | . . . . . Kinetic 3 | . . 2 . 1 Secondary . | . . . . . Self-Inflicted Damage . | . . . . . Shots . | . . . . . Rammed . | . . . . . Targets Rammed . | . . . . . Kicked . | . . . . . Crushed . | . . . . . Highest Temperature 151 | . . 44 80 151 Average Temperature 37 | . . 23 32 55 Received Heat Transfer 228 | . . 15 . 213 Siege Activations . | . . . . . Robots Corrupted . | . . . . . Combat Hostiles . | . . . . . Parts Fried . | . . . . . Impact Corruptions . | . . . . . Robots Melted . | . . . . . Combat Hostiles . | . . . . . Parts Melted . | . . . . . Heat Transferred 274 | . . . 200 74 Parts Sabotaged . | . . . . . Parts Stolen . | . . . . . Parts Stripped . | . . . . . Power Chain Reactions . | . . . . . Alert | -11 -10 -10 -10 -9 ------- Run | Yrd Mat Min Exi Min Peak Influence 159 | . 15 143 . 159 Initial 5 | . . 5 . . Average 89 | . 3 92 . 110 Maximum Alert Level . | . . . . . Low Security (%) 100 | 100 100 100 . 100 Level 1 . | . . . . . Level 2 . | . . . . . Level 3 . | . . . . . Level 4 . | . . . . . Level 5 . | . . . . . High Security . | . . . . . Max Security . | . . . . . Squads Dispatched 1 | . 1 . . . Investigation . | . . . . . Extermination . | . . . . . Reinforcement 1 | . 1 . . . Assault . | . . . . . Garrison . | . . . . . Intercept . | . . . . . Searches Triggered . | . . . . . Construction Impeded . | . . . . . Haulers Reinforced . | . . . . . Active Scanning Responses . | . . . . . Cargo Convoy Interrupts . | . . . . . Stealth | -11 -10 -10 -10 -9 --------- Run | Yrd Mat Min Exi Min Distress Signals 1 | . 1 . . . Communications Jammed . | . . . . . Distress Signals . | . . . . . Times Spotted 34 | . 5 5 . 24 Peak Tracking Total 20 | . 4 2 . 20 Tactical Retreats 1 | . . . . 1 Traps | -11 -10 -10 -10 -9 ------- Run | Yrd Mat Min Exi Min Traps Triggered . | . . . . . Indirectly . | . . . . . Trap Hack Attempts . | . . . . . Triggered . | . . . . . Disarmed . | . . . . . Reprogrammed . | . . . . . Reused . | . . . . . Traps Extracted . | . . . . . Installed . | . . . . . Triggered . | . . . . . Machines | -11 -10 -10 -10 -9 ---------- Run | Yrd Mat Min Exi Min Machines Disabled 1 | . . 1 . . Max in Single Turn 1 | . . 1 . . Machines Repaired . | . . . . . Machines Dismantled . | . . . . . Machines Sabotaged . | . . . . . Overloaded Fab Kills . | . . . . . Hacking | -11 -10 -10 -10 -9 --------- Run | Yrd Mat Min Exi Min Machines Accessed 2 | . . 1 1 . Terminals . | . . . . . Fabricators . | . . . . . Repair Stations . | . . . . . Recycling Units . | . . . . . Scanalyzers . | . . . . . Garrison Access . | . . . . . Total Hacks 6 | . . 1 5 . Successful 6 | . . 1 5 . Failed . | . . . . . Catastrophic . | . . . . . Database Lockouts . | . . . . . Manual 1 | . . . 1 . Terminals . | . . . . . Fabricators . | . . . . . Repair Stations . | . . . . . Recycling Units . | . . . . . Scanalyzers . | . . . . . Garrison Access . | . . . . . Terminal Hacks 6 | . . 1 5 . Record 5 | . . . 5 . Open Door 1 | . . 1 . . Fabricator Hacks . | . . . . . Repair Station Hacks . | . . . . . Recycling Unit Hacks . | . . . . . Scanalyzer . | . . . . . Garrison Access Hacks . | . . . . . Unauthorized Hacks . | . . . . . Terminals . | . . . . . Fabricators . | . . . . . Repair Stations . | . . . . . Recycling Units . | . . . . . Scanalyzers . | . . . . . Garrison Access . | . . . . . Data Cores Recovered . | . . . . . Used . | . . . . . Hacking Detections . | . . . . . Full Trace Events . | . . . . . Feedback Events . | . . . . . Feedback Blocked . | . . . . . Robot Schematics Acquired . | . . . . . Robots Built . | . . . . . Authchips . | . . . . . Time . | . . . . . Total Robot Build Rating . | . . . . . Part Schematics Acquired . | . . . . . Parts Built . | . . . . . Authchips . | . . . . . Time . | . . . . . Total Part Build Rating . | . . . . . Parts Repaired . | . . . . . Time . | . . . . . Parts Recycled . | . . . . . Recycled Matter . | . . . . . Retrieved Matter . | . . . . . Retrieved Components . | . . . . . Parts Scanalyzed . | . . . . . Part Schematics Acquired . | . . . . . Parts Damaged . | . . . . . Bothacking | -11 -10 -10 -10 -9 ------------ Run | Yrd Mat Min Exi Min Used RIF Installer . | . . . . . Robots Hacked . | . . . . . Non-combat . | . . . . . Combat . | . . . . . Robot Hacks Applied . | . . . . . Relay Couplers Released . | . . . . . Fabnet Peak Effective % . | . . . . . Robots Rewired 3 | . . . 3 . Allies Hacked . | . . . . . Hacks Repelled . | . . . . . Allies | -11 -10 -10 -10 -9 -------- Run | Yrd Mat Min Exi Min Total Allies 4 | . . 1 3 . Largest Group 3 | . . 1 3 2 Highest-Rated Group 60 | . . 31 60 29 Highest-Rated Ally 31 | . . 31 31 21 Total Orders . | . . . . . Ally Attacks 21 | . . 5 . 16 Total Damage 310 | . . 64 . 246 Kills 7 | . . 2 . 5 Allies Corrupted . | . . . . . Allies Melted . | . . . . . Intel | -11 -10 -10 -10 -9 ------- Run | Yrd Mat Min Exi Min Robot Analysis Total . | . . . . . Derelict Logs Recovered 3 | . . 1 . 2 Drone Launches . | . . . . . Drone Recoveries . | . . . . . Exploration | -11 -10 -10 -10 -9 ------------- Run | Yrd Mat Min Exi Min Turns Passed 1418 | 46 56 310 627 379 Spaces Moved 1271 | 37 50 280 572 332 Core 7 | 7 . . . . Treads . | . . . . . Legs . | . . . . . Wheels 1264 | 30 50 280 572 332 Hover . | . . . . . Flight . | . . . . . Fastest Speed 50 | 50 100 100 100 100 Average Speed 99 | 90 100 100 100 100 Slowest Speed 100 | 100 100 100 100 100 Overloaded Moves . | . . . . . Propulsion Burnouts . | . . . . . Robots Hopped . | . . . . . Cave-ins Triggered . | . . . . . Exploration Rate (%) 47 | 4 22 62 91 60 Regions Visited 4 Branch Regions 3 Pre-discovered Areas 1 | . . . 1 . Known Exits Taken . | . . . . . Unknown Exits Taken 4 | 1 1 1 1 . Scrap Searched 1 | . . 1 . . Spaces Dug 1 | . . . 1 . Terrain Destroyed 1 | . . . 1 . Melee . | . . . . . Projectile 1 | . . . 1 . AOE . | . . . . . Terrain Rammed . | . . . . . Walls Destroyed . | . . . . . Machines Disabled . | . . . . . Actions | -11 -10 -10 -10 -9 --------- Run | Yrd Mat Min Exi Min Total 1360 | 49 55 298 597 361 Wait 17 | . . 6 . 11 Move 1267 | 36 49 279 571 332 Hop . | . . . . . Pick Up 17 | 8 4 3 1 1 Fast Attach 2 | . . . 2 . Attach 8 | 5 . 2 . 1 Detach 3 | . . 1 1 1 Swap 6 | . 2 1 2 1 Drop 2 | . . . 2 . Fire 28 | . . 6 10 12 Melee 2 | . . . . 2 Ram . | . . . . . Kick . | . . . . . Crush . | . . . . . Escape Stasis . | . . . . . Rewire 8 | . . . 8 . Trap . | . . . . . Miscellaneous . | . . . . . Route ------- -11/Scrapyard -10/Materials -10/Mines (discovered 2 exits: [*Mat] / *Exi) -10/Exiles -9/Mines History --------- Turn | Location | Event 7 | -11/Scrapyard | Discovered new exit (range 15) 47 | -11/Scrapyard | Entered Materials 85 | -10/Materials | Discovered new exit (range 15) 103 | -10/Materials | Entered Mines 252 | -10/Mines | Found the Drone Emporium 298 | -10/Mines | Received a Mining Laser from a helpful Derelict 312 | -10/Mines | Build established: Mutant 355 | -10/Mines | Discovered new exit (range 6) 408 | -10/Mines | Deemed a non-threat by the Exiles lab entrance 409 | -10/Mines | Discovered new exit (range 5) 413 | -10/Mines | Entered Exiles 413 | -10/Exiles | Found Exiles lab destroyed 413 | -10/Exiles | Accompanied by 1 ally 690 | -10/Exiles | Learned location of Zion (-6) 1025 | -10/Exiles | Discovered new exit (range 11) 1040 | -10/Exiles | Entered Mines 1040 | -9/Mines | Accompanied by 3 allies 1045 | -9/Mines | Met a Derelict bent on vengeance 1091 | -9/Mines | Learned Materials non-interactive machine intel 1374 | -9/Mines | Assembled infested the area 1379 | -9/Mines | Assisted by a Guerilla fighting off Assembled 1409 | -9/Mines | Core integrity fell below 50% 1414 | -9/Mines | Core integrity fell below 20% 1419 | -9/Mines | Destroyed by as-14052 with Assembled Maul Last Messages --------------- Demolisher response squad. A derelict emerges from the shadows: "You need to get out of here! I've been tracking a group of Assembled to figure out where they're coming from, and they're closing on this area, come on!" K-01 Serf destroyed. YB-4YI(h): "I'll hold them off! Go on ahead or try to find another way!" U-05 Engineer lays Concrete. K-01 Serf collects debris. U-05 Engineer builds a Wall. K-01 Serf destroyed. Ion Engine severed. Lgt. Cannon destroyed. Com. Wheel destroyed. Destroyed Asb. Hover Unit. as-93595 destroyed. Lgt. Cannon destroyed. Mak. Laser destroyed. Map ----- +----------------------------------------------------+ | ????????????????## [%##??# ## #??????????? | | ??????????????#### =##?### ## #??????????? | | ?????????????## ### ##??# ## #??????????? | | ?????????????# #### ##???# #### #??????????? | | ?????????????# #?## ##????# #??# #??????????? | | ?????????????# #### #?????# #??# #??????????? | | ?????????????# + #?????# #??# #??????????? | | ?????????????## #### #?????# #??# #??????????? | | ??????????????## #??# #?????# #??# #??????????? | | ???????????????## #??# #?????# #??# #??????????? | | ????????????????## #??# ####### #??# #??????????? | | ?????????????????###??# #??# #??????????? | | ??????????????????????######### #??# ###########? | | ??????????????????????????????# #??# ## | | ?????????????????????????###### #?## """ # | | ?????????????????????????# #?# """ # | | ?????????????????????????# ######?# ### """ | | ?????????????????????????# #??????# ##?### | | ????????????????????###### ########[ #????## | | ????????????????????# ## =% #?????## | | ????????############# % #########??????# | | ????? ! % %[ #??????????????# # | | ????? %* #?????????????## ## | | ??????# ##### ## #????????????## ##? | | ??????# #???#####a #???????????## #?? | | ??????# #????#@aa #??????###?## #?? | | ?????????? #???#aaa%#?????## ## #?? | | ????????????? #??#aa###?????# ##?? | | ?????????????????# =%### ##??????# #??? | | ?????????????????# =*! a #??????# #??? | | ????????????????## % #####?## #??? | | ????????????????# ##?### ##?? | | ???????????????# ###?## #?? | | ??????????????# ##?# #?? | | ?????????????# ## ### ## #? | | ?????????????# ###### ## #### ##? | | ???????????? ## #????### ###?##?? | | ??????????? #?## #??????## ##???? | | ?????????? ##### #???# ##??????## #???? | | ???????????????####???? ???????# #???? | | ??????????????????????? ! ??????# #???? | | ??????????????????????? #?????# #??? | | ??????????????????????? #?????## ### #??? | | ??????????????????????? #??????######?## ##??? | | ????????????????????????###????????????????###???? | | ?????????????????????????????????????????????????? | | ?????????????????????????????????????????????????? | | ?????????????????????????????????????????????????? | | | | | +----------------------------------------------------+ Best States ------------- Heat Dissipation 25 Energy Generation 10 Energy Capacity 250 Matter Stores 300 Matter Capacity 300 Sight Range 16 Terrain Scan Density 10 Cloak Strength 3 Evasion (%) 40 Item Schematics ----------------- None Robot Schematics ------------------ None Fabricated ------------ Nothing Alien Tech Used ----------------- None Achievements -------------- None Challenges ------------ None Game ------ Seed PiercingArmorPlatform Manual? 0 Play Time 00:13:56 Cumulative 44.4 hours Start 2024.04.15 @ 05:22:01 End 2024.04.15 @ 05:32:40 Sessions 1 Manual Loads 0 Difficulty Rogue Special Mode None Game No. 48 Rogue 39 Adventurer 9 Explorer 0 Win Type - Total 0 Types 0/0/0/0/0/0/0/0/0 Lore% 30 Gallery% 44 Achievement% 35 Wizard Run 0 Options --------- Layout 1 ASCII 0 Keyboard 0 Movement Numpad Keybinds 0 Fullscreen 1 Font 24/Smallcaps Map View 50x35 Zoom Use 0% Tactical HUD 0 Map Filters NONE Filters NONE Steam 1 RUN: 48508634-bb01-45f6-89ea-3627f8e79e37